[Event "RLP-ch Rapid 2024"]
[Site "Landau"]
[Date "2024.05.04"]
[Round "2.6"]
[White "Lutterbach, Jakob"]
[Black "Boder, Jan"]
[Result "1-0"]
[ECO "A22"]
[WhiteElo "1858"]
[BlackElo "2318"]
[Annotator "TA"]
[PlyCount "125"]
[EventDate "2024.05.03"]
[EventType "swiss"]
[EventCountry "GER"]
[SourceTitle "playchess.com"]
[Source "ChessBase"]
[SourceQuality "1"]
[TimeControl "900+5"]

{[%evp 9,125,-72,0,-17,47,53,56,54,57,35,31,31,33,24,47,31,36,20,27,27,27,24,39,39,41,46,52,54,44,47,42,43,43,36,41,36,39,33,35,35,38,37,46,47,51,58,45,52,45,45,181,25,26,40,40,0,0,-102,-98,-99,-100,-101,-94,-102,-95,-102,-96,-124,-93,-89,-90,-90,-82,-114,-123,-116,-81,-155,-153,-145,-143,-163,-143,-152,-53,-53,-27,-27,-34,-46,0,0,0,0,29980,29981,29981,29982,29983,29984,29984,29985,29986,29985,29985,29986,29986,29987,29987,29988,29988,29989,29989,29990,29990,29991,29991,29992]} 1. c4 {[%emt 0:00:04]} e5 {[%emt 0:00:05]} 2. Nc3 {[%emt 0:00:02]} Nf6 {[%emt 0:00:01]} 3. Nf3 {[%emt 0:00:03]} e4 {[%emt 0:00:01]} 4. Ng5 {[%emt 0:00:08]} c6 {[%emt 0:00:01]} 5. d4 {[%emt 0:01:29]} exd3 {[%emt 0:00:02]} ({Better is} 5... d5 $17) 6. Qxd3 {[%emt 0:00:14]} h6 {[%emt 0:01:00]} (6... Na6 $11) 7. Nge4 $14 {[%emt 0:00:17]} Nxe4 {[%emt 0:01:26]} 8. Qxe4+ {[%emt 0:00:02] White is slightly better.} Be7 {[%emt 0:00:01]} 9. g3 {[%emt 0:00:24]} O-O {[%emt 0:00:09]} 10. Bg2 {[%emt 0:00:14]} d6 {[%emt 0:00:22]} 11. O-O {[%emt 0:00:16]} Nd7 {[%emt 0:00:12]} 12. b3 {[%emt 0:00:29]} Bf6 {[%emt 0:00:24]} 13. Bb2 {[%emt 0:00:11]} Nc5 {[%emt 0:00:33]} 14. Qc2 {[%emt 0:00:02]} a5 {[%emt 0:00:31]} 15. Rad1 {[%emt 0:01:18]} Qc7 {[%emt 0:00:16]} 16. Rd2 {[%emt 0:00:31]} Be6 {[%emt 0:01:28]} 17. Rfd1 {[%emt 0:00:12]} Rfd8 {[%emt 0:00:01]} 18. Ne4 {[%emt 0:00:57]} Nxe4 {[%emt 0:00:19]} 19. Bxe4 {[%emt 0:00:02]} Bxb2 {[%emt 0:00:10]} 20. Qxb2 {[%emt 0:00:01]} a4 {[%emt 0:00:01]} 21. Qc3 {[%emt 0:01:08]} axb3 {[%emt 0:01:13]} 22. axb3 {[%emt 0:00:02]} Kf8 {[%emt 0:01:51]} 23. Qe3 {[%emt 0:00:14]} Ra3 {[%emt 0:00:28]} 24. Rd3 {[%emt 0:00:44]} Qe7 {[%emt 0:00:39]} 25. Qf4 {[%emt 0:00:38]} g5 {[%emt 0:00:22]} 26. Qc1 {[%emt 0:01:02]} Ra2 {[%emt 0:00:11]} 27. Qc3 {[%emt 0:00:01]} Kg8 {[%emt 0:00:07] Repels Qh8+} 28. Re3 {[%emt 0:00:52] Black must now prevent f4.} Qf8 {[%emt 0:01:39]} 29. Qf6 {[%emt 0:00:34]} Rd7 {[%emt 0:02:28]} (29... Raa8 $14) 30. Bf5 $2 {[%emt 0:00:59]} ({White should play} 30. f4 $18) 30... Bxf5 $11 {[%emt 0:00:05]} 31. Qxf5 {[%emt 0:00:03]} Re7 {[%emt 0:00:00]} 32. Rdd3 {[%emt 0:01:05]} (32. Rxd6 $2 {perishes.} Rxe3 (32... Rxe2 33. Rxe7 Rxe7 34. Kg2 $16) 33. Rd3 Rexe2 $19) (32. Qf3 {simplifies} Rxe3 33. Qxe3 Ra8 34. Rd2) 32... Rxe2 {[%emt 0:00:26]} 33. Qf3 {[%emt 0:01:10]} (33. Rxe2 $11 {remains equal.} Rxe2 34. Kg2) 33... R2xe3 $17 {[%emt 0:00:04]} 34. Rxe3 {[%emt 0:00:02][%mdl 4096] Endgame. KQR-KQR} Qe8 {[%emt 0:00:11]} 35. Rd3 {[%emt 0:00:40]} Re1+ {[%emt 0:00:08]} 36. Kg2 {[%emt 0:00:02]} Qe5 {[%emt 0:00:02]} 37. h3 {[%emt 0:01:08]} Kg7 {[%emt 0:00:16]} 38. Qh5 {[%emt 0:00:35]} Qe4+ {[%emt 0:00:10]} 39. Qf3 {[%emt 0:00:18][%cal Of3e4]} Qxf3+ {[%emt 0:00:10]} (39... Qe7 {looks sharper.} 40. Qg4 Qe6 41. Rd2 Qe5) 40. Kxf3 {[%emt 0:00:01] [#] KR-KR} Re6 $1 {[%emt 0:00:01]} 41. b4 {[%emt 0:00:05]} Kf6 {[%emt 0:00:02]} 42. b5 {[%emt 0:00:01]} Ke7 {[%emt 0:00:23]} 43. Ra3 {[%emt 0:00:01] [#]} (43. Kg4 $142) 43... cxb5 $1 {[%emt 0:00:11]} 44. cxb5 {[%emt 0:00:01]} Re5 {[%emt 0:00:01]} 45. Rb3 {[%emt 0:00:07]} b6 {[%emt 0:00:02]} 46. Kg4 {[%emt 0:00:04]} Kf6 {[%emt 0:00:06]} ({Black should try} 46... d5 $17 {Hoping for ...Kd6.} 47. Kf3 h5) 47. Kh5 $15 {[%emt 0:00:01]} Kg7 {[%emt 0:00:00]} 48. Rd3 $1 {[%emt 0:00:08]} d5 {[%emt 0:00:07][%cal Bd6d5,Bd5d4][%mdl 32]} 49. Rd4 {[%emt 0:00:09]} f5 {[%emt 0:00:03]} (49... Kh7 $15 {was preferrable.}) 50. f4 $11 {[%emt 0:00:06]} gxf4 {[%emt 0:00:01]} 51. gxf4 {[%emt 0:00:01]} Kf6 {[%emt 0:00:12][%mdl 8192]} 52. fxe5+ {[%emt 0:00:04] White mates.} Kxe5 {[%emt 0:00:00] KR-KP} 53. Rd1 {[%emt 0:00:14]} d4 {[%emt 0:00:01]} 54. Kxh6 {[%emt 0:00:04] KR-K3P} f4 {[%emt 0:00:10]} 55. Kg5 {[%emt 0:00:08]} f3 {[%emt 0:00:01]} 56. Kg4 {[%emt 0:00:02]} Ke4 {[%emt 0:00:15]} 57. Re1+ {[%emt 0:00:03]} Kd3 {[%emt 0:00:01]} 58. Kxf3 {[%emt 0:00:01]} Kd2 {[%emt 0:00:01]} 59. Ra1 {[%emt 0:00:01]} d3 {[%emt 0:00:01]} 60. h4 {[%emt 0:00:01][%cal Bh3h4,Bh4h5,Bh5h6][%mdl 32]} Kc2 {[%emt 0:00:01]} 61. h5 {[%emt 0:00:01]} d2 {[%emt 0:00:01]} 62. h6 {[%emt 0:00:01]} Kb2 {[%emt 0:00:04]} 63. Rh1 {[%emt 0:00:02] What a bad dream for Black.   Weighted Error Value: White=0.14 (very precise) /Black=0.23 (precise) .  Loses game:     	---       	Black=1      Mistake:       	White=3     	Black=4      Inaccurate:     	White=2     	Black=2      OK:         	White=16    	Black=22     Best:        	White=3     	Black=1      Strong:       	White=1     	Black=2} 1-0

[Event "RLP-ch Rapid 2024"]
[Site "Landau"]
[Date "2024.05.04"]
[Round "2.7"]
[White "Yakovenko, Oleg"]
[Black "Bender, Tim"]
[Result "0-1"]
[ECO "E91"]
[WhiteElo "2281"]
[BlackElo "1850"]
[Annotator "RC"]
[PlyCount "136"]
[EventDate "2024.05.03"]
[EventType "swiss"]
[EventCountry "GER"]
[SourceTitle "playchess.com"]
[Source "ChessBase"]
[SourceQuality "1"]
[TimeControl "900+5"]

1. Nf3 {[%emt 0:00:01]} Nf6 {[%emt 0:00:11]} 2. c4 {[%emt 0:00:02]} g6 {[%emt 0:00:07]} 3. Nc3 {[%emt 0:00:01]} Bg7 {[%emt 0:00:02]} 4. e4 {[%emt 0:00:01]} d6 {[%emt 0:00:05]} 5. d4 {[%emt 0:00:02]} O-O {[%emt 0:00:07]} 6. Be2 {[%emt 0:00:01]} e6 {[%emt 0:00:42]} 7. O-O {[%emt 0:00:09]} a6 {[%emt 0:00:15]} 8. Re1 {[%emt 0:00:56]} Nbd7 {[%emt 0:00:47]} 9. Bf1 {[%emt 0:00:21]} e5 {[%emt 0:02:02]} 10. d5 {[%emt 0:00:25]} h6 {[%emt 0:00:53]} 11. b4 {[%emt 0:00:24]} a5 {[%emt 0:00:17]} 12. bxa5 {[%emt 0:00:07]} Rxa5 {[%emt 0:01:01]} 13. a4 {[%emt 0:00:23]} Nc5 {[%emt 0:00:12]} 14. Ba3 {[%emt 0:03:29]} Nfd7 {[%emt 0:01:58]} 15. Nd2 {[%emt 0:00:21]} Ra7 {[%emt 0:00:31]} 16. Nb3 {[%emt 0:00:52]} b6 {[%emt 0:00:40]} 17. Nxc5 {[%emt 0:00:13]} bxc5 {[%emt 0:00:46]} 18. Bc1 {[%emt 0:02:16]} Nb6 {[%emt 0:01:26]} 19. Ra3 {[%emt 0:01:21]} f5 {[%emt 0:00:21]} 20. exf5 {[%emt 0:00:44]} Bxf5 {[%emt 0:00:13]} 21. a5 {[%emt 0:00:23]} Nc8 {[%emt 0:00:53]} 22. a6 {[%emt 0:01:08]} Bd7 {[%emt 0:00:59]} 23. Bd3 {[%emt 0:00:30]} Bf5 {[%emt 0:01:19]} 24. Nb5 {[%emt 0:00:29]} Ra8 {[%emt 0:00:16]} 25. Be4 {[%emt 0:01:09]} Bxe4 {[%emt 0:00:27]} 26. Rxe4 {[%emt 0:00:02]} Na7 {[%emt 0:00:26]} 27. Qg4 {[%emt 0:00:20]} c6 {[%emt 0:00:16]} 28. Nxa7 {[%emt 0:00:25]} Rxa7 {[%emt 0:00:02]} 29. Qxg6 {[%emt 0:00:23]} Qf6 {[%emt 0:00:01]} 30. Qxf6 {[%emt 0:00:05]} Rxf6 {[%emt 0:00:01]} 31. dxc6 {[%emt 0:00:23]} Rff7 {[%emt 0:00:01]} 32. Re2 {[%emt 0:00:08]} Rfc7 {[%emt 0:00:04]} 33. Rb2 {[%emt 0:00:08]} Rxc6 {[%emt 0:00:02]} 34. Rb8+ {[%emt 0:00:01]} Kh7 {[%emt 0:00:02]} 35. Rb7 {[%emt 0:00:10]} Raxa6 {[%emt 0:00:10]} 36. Rxa6 {[%emt 0:00:02]} Rxa6 {[%emt 0:00:02]} 37. Rb1 {[%emt 0:00:07]} Ra4 {[%emt 0:00:04]} 38. Be3 {[%emt 0:00:02]} Rxc4 {[%emt 0:00:05]} 39. Rd1 {[%emt 0:00:01]} Bf8 {[%emt 0:00:02]} 40. Kf1 {[%emt 0:00:02]} Kg6 {[%emt 0:00:02]} 41. Ke2 {[%emt 0:00:02]} Rc2+ {[%emt 0:00:01]} 42. Kd3 {[%emt 0:00:01]} Rb2 {[%emt 0:00:08]} 43. Ke4 {[%emt 0:00:01]} Kf7 {[%emt 0:00:08]} 44. Kd5 {[%emt 0:00:02]} Rb7 {[%emt 0:00:11]} 45. Ra1 {[%emt 0:00:09]} c4 {[%emt 0:00:10]} 46. Rc1 {[%emt 0:00:12]} Rc7 {[%emt 0:00:02]} 47. Rc3 {[%emt 0:00:11]} Ke7 {[%emt 0:00:04]} 48. f4 {[%emt 0:00:06]} Bg7 {[%emt 0:00:06]} 49. f5 {[%emt 0:00:08]} Bf6 {[%emt 0:00:08]} 50. Bxh6 {[%emt 0:00:02]} Rc5+ {[%emt 0:00:00]} 51. Ke4 {[%emt 0:00:03]} d5+ {[%emt 0:00:01]} 52. Kf3 {[%emt 0:00:07]} e4+ {[%emt 0:00:03]} 53. Ke3 {[%emt 0:00:03]} Bxc3 {[%emt 0:00:01]} 54. g4 {[%emt 0:00:01]} Be5 {[%emt 0:00:03]} 55. h4 {[%emt 0:00:05]} c3 {[%emt 0:00:01]} 56. Ke2 {[%emt 0:00:01]} c2 {[%emt 0:00:01]} 57. Bc1 {[%emt 0:00:01]} Bb2 {[%emt 0:00:04]} 58. Bxb2 {[%emt 0:00:04]} c1=Q {[%emt 0:00:02]} 59. Bxc1 {[%emt 0:00:01]} Rxc1 {[%emt 0:00:01]} 60. Ke3 {[%emt 0:00:05]} Rh1 {[%emt 0:00:06]} 61. h5 {[%emt 0:00:05]} Kd6 {[%emt 0:00:01]} 62. Kf4 {[%emt 0:00:10]} Rf1+ {[%emt 0:00:04]} 63. Kg5 {[%emt 0:00:21]} e3 {[%emt 0:00:06]} 64. h6 {[%emt 0:00:01]} e2 {[%emt 0:00:01]} 65. h7 {[%emt 0:00:02]} Rh1 {[%emt 0:00:02]} 66. Kg6 {[%emt 0:00:02]} e1=Q {[%emt 0:00:04]} 67. g5 {[%emt 0:00:03]} Qe8+ {[%emt 0:00:03]} 68. Kg7 {[%emt 0:00:02]} Qe7+ {[%emt 0:00:02]} 0-1

[Event "RLP-ch Rapid 2024"]
[Site "Landau"]
[Date "2024.05.04"]
[Round "2.8"]
[White "Baerwinkel, Tobias"]
[Black "Froembgen, Andreas"]
[Result "1-0"]
[ECO "E72"]
[WhiteElo "2289"]
[BlackElo "1867"]
[Annotator "NA RC"]
[PlyCount "47"]
[EventDate "2024.05.03"]
[EventType "swiss"]
[EventCountry "GER"]
[SourceTitle "playchess.com"]
[Source "ChessBase"]
[SourceQuality "1"]
[TimeControl "900+5"]

1. d4 {[%emt 0:00:01]} Nf6 {[%emt 0:00:02]} 2. c4 {[%emt 0:00:00]} g6 {[%emt 0:00:01]} 3. g3 {[%emt 0:00:01]} Bg7 {[%emt 0:00:01]} 4. Bg2 {[%emt 0:00:01]} c6 {[%emt 0:00:01]} 5. e4 {[%emt 0:00:04]} d6 {[%emt 0:00:02]} 6. Nc3 {[%emt 0:00:03]} O-O {[%emt 0:00:03]} 7. Nge2 {[%emt 0:00:06]} e5 {[%emt 0:00:07]} 8. O-O {[%emt 0:00:14]} Nbd7 {[%emt 0:00:17]} 9. h3 {[%emt 0:00:06]} Rb8 {[%emt 0:00:08]} 10. Be3 {[%emt 0:01:01]} a6 {[%emt 0:00:07]} 11. a4 {[%emt 0:01:02]} b5 {[%emt 0:00:24]} 12. axb5 {[%emt 0:00:37]} axb5 {[%emt 0:00:03]} 13. cxb5 {[%emt 0:00:07]} cxb5 {[%emt 0:00:02]} 14. b4 {[%emt 0:00:08]} Qc7 {[%emt 0:00:23]} 15. Qb3 {[%emt 0:01:07]} Re8 {[%emt 0:02:13]} 16. d5 {[%emt 0:01:01]} Nf8 {[%emt 0:00:42]} 17. Ra7 {[%emt 0:01:13]} Rb7 {[%emt 0:00:19]} 18. Nxb5 {[%emt 0:00:15]} Qb8 {[%emt 0:00:01]} 19. Rxb7 {[%emt 0:00:45]} Bxb7 {[%emt 0:00:09]} 20. Nec3 {[%emt 0:00:18]} Rc8 {[%emt 0:00:38]} 21. Ba7 {[%emt 0:00:23]} Qa8 {[%emt 0:00:16]} 22. Ra1 {[%emt 0:00:01]} Ne8 {[%emt 0:00:01]} 23. Ra5 {[%emt 0:00:21]} Bh6 {[%emt 0:11:00]} 24. Be3 {[%emt 0:00:39]} 1-0

[Event "RLP-ch Rapid 2024"]
[Site "Landau"]
[Date "2024.05.04"]
[Round "2.9"]
[White "Moench, Dorothee"]
[Black "Anissimova, Mariya"]
[Result "0-1"]
[ECO "A22"]
[WhiteElo "1823"]
[BlackElo "1850"]
[Annotator "NA RC"]
[PlyCount "56"]
[EventDate "2024.05.03"]
[EventType "swiss"]
[EventCountry "GER"]
[SourceTitle "playchess.com"]
[Source "ChessBase"]
[SourceQuality "1"]
[TimeControl "900+5"]

1. c4 {[%emt 0:00:06]} e5 {[%emt 0:00:02]} 2. Nc3 {[%emt 0:00:04]} Nf6 {[%emt 0:15:13]} 3. g3 {[%emt 0:00:06]} c6 {[%emt 0:00:00]} 4. Bg2 {[%emt 0:00:18]} d6 {[%emt 0:00:00]} 5. e4 {[%emt 0:00:18]} Be7 {[%emt 0:00:00]} 6. d3 {[%emt 0:00:16]} Be6 {[%emt 0:00:00]} 7. Bg5 {[%emt 0:00:39]} Nbd7 {[%emt 0:00:00]} 8. Nge2 {[%emt 0:00:21]} h6 {[%emt 0:00:00]} 9. Bxf6 {[%emt 0:00:11]} Nxf6 {[%emt 0:00:00]} 10. O-O {[%emt 0:00:21]} O-O {[%emt 0:00:00]} 11. b3 {[%emt 0:00:53]} d5 {[%emt 0:00:00]} 12. f4 {[%emt 0:00:21]} dxe4 {[%emt 0:00:00]} 13. Nxe4 {[%emt 0:00:40]} Qb6+ {[%emt 0:00:00]} 14. Kh1 {[%emt 0:00:48]} Ng4 {[%emt 0:00:00]} 15. Qc1 {[%emt 0:00:36]} Ne3 {[%emt 0:00:00]} 16. Rf3 {[%emt 0:01:14]} Nxg2 {[%emt 0:00:00]} 17. Kxg2 {[%emt 0:00:02]} Bg4 {[%emt 0:00:00]} 18. Rf2 {[%emt 0:00:31]} Bxe2 {[%emt 0:00:00]} 19. Rxe2 {[%emt 0:00:01]} exf4 {[%emt 0:00:00]} 20. Qxf4 {[%emt 0:00:31]} f5 {[%emt 0:00:00]} 21. Nf2 {[%emt 0:00:32]} Bg5 {[%emt 0:00:00]} 22. Qf3 {[%emt 0:00:49]} f4 {[%emt 0:00:00]} 23. g4 {[%emt 0:00:29]} Rae8 {[%emt 0:00:00]} 24. Rae1 {[%emt 0:00:01]} Re3 {[%emt 0:00:00]} 25. Rxe3 {[%emt 0:01:50]} fxe3 {[%emt 0:00:00]} 26. Qe4 {[%emt 0:02:26]} exf2 {[%emt 0:00:00]} 27. Rf1 {[%emt 0:00:12]} Qe3 {[%emt 0:00:00]} 28. Qg6 {[%emt 0:01:42]} Qf3# {[%emt 0:00:00]} 0-1

[Event "RLP-ch Rapid 2024"]
[Site "Landau"]
[Date "2024.05.04"]
[Round "3.1"]
[White "Lebzak, Jaroslav"]
[Black "Carow, Johannes"]
[Result "0-1"]
[ECO "B12"]
[WhiteElo "2141"]
[BlackElo "2456"]
[Annotator "TA"]
[PlyCount "72"]
[EventDate "2024.05.03"]
[EventType "swiss"]
[EventCountry "GER"]
[SourceTitle "playchess.com"]
[Source "ChessBase"]
[SourceQuality "1"]
[TimeControl "900+5"]

{[%evp 9,72,31,41,29,43,30,43,22,37,31,30,26,19,0,14,-8,29,32,40,24,58,10,8,0,0,-21,-17,-16,-13,-22,-22,-72,-75,-81,-81,-77,-77,-75,-55,-83,-93,-145,-116,-135,-116,-133,-133,-198,-200,-238,-177,-260,-220,-228,-148,-194,-111,-110,-115,-220,-219,-185,-219,-704,-701]} 1. e4 {[%emt 0:00:02]} c6 {[%emt 0:00:04]} 2. d4 {[%emt 0:00:02]} d5 {[%emt 0:00:02]} 3. f3 {[%emt 0:00:01]} e6 {[%emt 0:00:24]} 4. c3 {[%emt 0:00:07]} Ne7 {[%emt 0:00:19]} 5. Bd3 {[%emt 0:00:11]} b6 {[%emt 0:00:24]} 6. Ne2 {[%emt 0:02:19]} Ba6 {[%emt 0:00:26]} 7. Bxa6 {[%emt 0:01:42]} Nxa6 {[%emt 0:00:02]} 8. O-O {[%emt 0:00:02] White is slightly better.} Qd7 {[%emt 0:00:18]} 9. Be3 {[%emt 0:00:14]} Ng6 {[%emt 0:02:21]} 10. a4 {[%emt 0:00:48][%cal Ba2a4,Ba4a5][%mdl 32]} Be7 {[%emt 0:00:20]} 11. Nd2 {[%emt 0:00:23]} O-O {[%emt 0:00:07]} 12. a5 {[%emt 0:01:50]} b5 {[%emt 0:00:51]} 13. b4 {[%emt 0:01:17]} dxe4 {[%emt 0:01:22]} 14. Nxe4 {[%emt 0:00:14]} Rad8 {[%emt 0:00:30]} 15. f4 {[%emt 0:00:58]} (15. Nf4 $14) 15... Nc7 $11 {[%emt 0:00:08]} 16. N2g3 {[%emt 0:00:29]} Nd5 $36 {[%emt 0:00:06][%mdl 2048] Black has good play.} 17. Bd2 {[%emt 0:00:05]} f5 {[%emt 0:04:42]} 18. Nc5 {[%emt 0:00:31]} Bxc5 {[%emt 0:00:02]} 19. bxc5 {[%emt 0:00:04]} Nf6 {[%emt 0:00:26][%cal Ob5b4]} 20. Qe2 {[%emt 0:00:44] [#]} (20. Rb1 $11) 20... b4 $1 $17 {[%emt 0:00:44]} 21. Rae1 {[%emt 0:01:54]} bxc3 {[%emt 0:00:08]} 22. Bxc3 {[%emt 0:00:02]} Nd5 {[%emt 0:00:05][%csl LRc3,LRf4]} 23. Bd2 {[%emt 0:00:06]} Rfe8 {[%emt 0:00:04]} 24. Kh1 {[%emt 0:00:23]} Nc7 {[%emt 0:00:20] Excellent horsemanship.} 25. Nh5 {[%emt 0:01:07]} (25. a6 $142) 25... Rb8 {[%emt 0:00:20]} 26. Bc1 {[%emt 0:00:15]} Qd5 {[%emt 0:00:18][%cal Ob8b3]} 27. Rf3 {[%emt 0:00:38]} Rb1 {[%emt 0:00:18]} 28. Rh3 {[%emt 0:00:16]} (28. h3 $17 {was worth a try.}) 28... Reb8 $19 {[%emt 0:01:04]} 29. a6 {[%emt 0:00:28]} Qd7 {[%emt 0:00:19][%cal Ob8b4]} (29... Qxd4 30. Rd3 Qxc5 31. Rdd1 $15 (31. Rd7 $2 Qxc1 32. Rdd1 Qb2 $19)) 30. d5 {[%emt 0:00:08]} (30. Rd3 $142) 30... Nxd5 {[%emt 0:00:16]} (30... Qxd5 31. Rd3 Qxc5 32. Rdd1 $15 (32. Rd7 $2 Qxc1 33. Rdd1 Qb2 $19)) 31. Rd3 {[%emt 0:00:10]} Ra1 {[%emt 0:00:06] ...Rbb1 would now be deadly.} 32. Rdd1 {[%emt 0:00:05] [#]} (32. Red1 $17) 32... Rbb1 {[%emt 0:00:29]} ({Black should try} 32... Rb4 $1 $19 33. Nxg7 Qxg7 (33... Re4 34. Qb2 $19)) 33. Bb2 $17 {[%emt 0:00:05]} Rxd1 {[%emt 0:00:11]} (33... Ngxf4 $2 {loses.} 34. Bxa1 Nxe2 35. Rxb1 $18) 34. Bxa1 {[%emt 0:00:06]} (34. Rxd1 $17 Nc3 (34... Ngxf4 $2 35. Nxf4 Rxd1+ 36. Qxd1 $18) 35. Bxa1 Qxd1+ 36. Qxd1 Nxd1 37. g3) 34... Rxe1+ $19 {[%emt 0:00:07]} (34... Ndxf4 $2 {perishes.} 35. Rxd1 (35. Qxd1 Nd3 $18) 35... Nd5 36. Bxg7 $18 (36. Nxg7 Kf7 $18)) 35. Qxe1 {[%emt 0:00:01]} Ndxf4 {[%emt 0:00:07]} 36. Nxg7 {[%emt 0:00:04] [#]} (36. Nxf4 Nxf4 37. Qb1) 36... e5 $1 {[%emt 0:00:06][%mdl 512] Weighted Error Value: White=0.46/Black=0.16 (very precise) .  Mistake:       	White=8     	Black=1      Inaccurate:     	White=1     	Black=3      OK:         	White=6     	Black=14     Best:        	---       	Black=1      Brilliant:      	---       	Black=1} 0-1

[Event "RLP-ch Rapid 2024"]
[Site "Landau"]
[Date "2024.05.04"]
[Round "3.2"]
[White "Lutterbach, Jakob"]
[Black "Barzen, Pascal"]
[Result "0-1"]
[ECO "A22"]
[WhiteElo "1858"]
[BlackElo "2291"]
[Annotator "TA"]
[PlyCount "48"]
[EventDate "2024.05.03"]
[EventType "swiss"]
[EventCountry "GER"]
[SourceTitle "playchess.com"]
[Source "ChessBase"]
[SourceQuality "1"]
[TimeControl "900+5"]

{[%evp 9,48,-47,-39,-52,-55,-79,-46,-47,-58,-111,-108,-204,-209,-208,-212,-188,-204,-205,-217,-200,-227,-233,-244,-553,-518,-545,-534,-606,-520,-523,-515,-655,-664,-652,-662,-666,-658,-949,-945,-1401,-1066]} 1. c4 {[%emt 0:00:04]} e5 {[%emt 0:00:01]} 2. Nc3 {[%emt 0:00:02]} Nf6 {[%emt 0:00:04]} 3. Nf3 {[%emt 0:00:01]} e4 {[%emt 0:00:03]} 4. Ng5 {[%emt 0:00:03][%cal Bf3g5,Bg5h3,Bh3f4][%mdl 32]} c6 {[%emt 0:00:03]} 5. d4 {[%emt 0:00:01]} d5 {[%emt 0:00:37]} 6. cxd5 {[%emt 0:00:02]} cxd5 {[%emt 0:00:01]} 7. g3 {[%emt 0:00:46]} h6 {[%emt 0:00:09]} 8. Nh3 {[%emt 0:00:02] Black is slightly better.} Nc6 {[%emt 0:00:01]} 9. Bg2 {[%emt 0:00:29] Black keeps a firm grip on the game.} (9. Nf4 $15) 9... Bf5 $17 {[%emt 0:00:23]} 10. O-O {[%emt 0:01:11] [#]} (10. a3 $17) 10... Qd7 $1 $19 {[%emt 0:00:13]} 11. g4 {[%emt 0:01:28]} Bxg4 {[%emt 0:00:24]} 12. Nf4 {[%emt 0:00:02]} g5 {[%emt 0:01:08]} 13. f3 {[%emt 0:00:01] [#]} Bf5 $1 {[%emt 0:01:07]} (13... exf3 14. exf3 Bf5 15. Nd3 $17) 14. fxe4 {[%emt 0:00:01]} dxe4 {[%emt 0:00:21]} 15. d5 {[%emt 0:01:12]} Bc5+ {[%emt 0:02:10]} 16. e3 $2 {[%emt 0:00:24]} (16. Kh1 {nothing else works.} Ne5 17. d6 gxf4 18. Bxf4) 16... gxf4 {[%emt 0:00:34] Black is clearly winning.} 17. dxc6 {[%emt 0:01:37]} Qxd1 {[%emt 0:00:10]} (17... bxc6 18. Qxd7+ Nxd7 (18... Bxd7 19. Rxf4 Be7 20. Nxe4 $11) 19. Rxf4 $11) (17... Qxc6 18. Rxf4 Bg6 (18... Rd8 $2 19. Qf1 $18) 19. Kh1 $17) 18. Nxd1 {[%emt 0:00:01]} f3 {[%emt 0:00:17]} ({Inferior is} 18... bxc6 19. Rxf4 Bg4 20. Rxf6 $14 (20. Nf2 Rg8 $14)) 19. cxb7 {[%emt 0:00:13]} Rb8 {[%emt 0:00:04]} 20. b4 {[%emt 0:01:35]} Be7 {[%emt 0:01:03]} (20... fxg2 $2 {too greedy.} 21. Rxf5 (21. bxc5 $2 gxf1=Q+ 22. Kxf1 Rxb7 $19) 21... Be7 22. Bb2 $18 (22. Kxg2 Rg8+ 23. Kh1 Rg5 $11)) 21. Bxf3 {[%emt 0:01:31]} exf3 {[%emt 0:00:06]} 22. Rxf3 {[%emt 0:00:02]} Bg4 {[%emt 0:00:47]} 23. Rf1 {[%emt 0:00:24]} Rg8 {[%emt 0:00:05]} 24. Kh1 {[%emt 0:00:16]} Be2 {[%emt 0:00:03] Weighted Error Value: White=1.03/Black=0.06 (flawless) .  Mistake:       	White=3     	---        Inaccurate:     	---       	Black=1      OK:         	White=5     	Black=6      Best:        	White=2     	Black=1      Strong:       	---       	Black=1} 0-1

[Event "RLP-ch Rapid 2024"]
[Site "Landau"]
[Date "2024.05.04"]
[Round "3.3"]
[White "Bender, Tim"]
[Black "Lang, Torsten"]
[Result "0-1"]
[ECO "B06"]
[WhiteElo "1850"]
[BlackElo "2299"]
[Annotator "TA"]
[PlyCount "54"]
[EventDate "2024.05.03"]
[EventType "swiss"]
[EventCountry "GER"]
[SourceTitle "playchess.com"]
[Source "ChessBase"]
[SourceQuality "1"]
[TimeControl "900+5"]

{[%evp 9,54,29,26,23,56,22,35,13,47,44,58,50,51,51,58,47,56,43,61,27,32,6,31,17,25,0,0,0,0,0,3,-27,-25,-41,-8,-110,-35,-145,-137,-135,-139,-261,-254,-282,-230,-687,-683]} 1. d4 {[%emt 0:00:03]} g6 {[%emt 0:00:02]} 2. e4 {[%emt 0:00:06]} c6 {[%emt 0:00:04]} 3. Nf3 {[%emt 0:00:02]} d5 {[%emt 0:00:02]} 4. exd5 {[%emt 0:00:06]} cxd5 {[%emt 0:00:03]} 5. Bf4 {[%emt 0:00:48]} Nc6 {[%emt 0:00:04]} 6. c3 {[%emt 0:00:01]} Bg4 {[%emt 0:00:11]} 7. Be2 {[%emt 0:00:32]} e6 {[%emt 0:00:42]} 8. O-O {[%emt 0:00:22] White is slightly better.} Bg7 {[%emt 0:00:39]} 9. Nbd2 {[%emt 0:00:56]} Nge7 {[%emt 0:00:03][%cal Bg8e7,Be7f5,Bf5d6][%mdl 32]} 10. h3 {[%emt 0:00:27]} Bxf3 {[%emt 0:00:03]} 11. Nxf3 {[%emt 0:00:10]} O-O {[%emt 0:00:05]} 12. Re1 {[%emt 0:00:36]} Nf5 {[%emt 0:00:29]} 13. Bd3 {[%emt 0:00:41]} Nd6 {[%emt 0:00:29]} 14. Ne5 {[%emt 0:00:44]} Nxe5 {[%emt 0:00:34]} 15. Bxe5 {[%emt 0:00:06]} Rc8 {[%emt 0:00:13]} 16. Qb3 {[%emt 0:00:36]} Rc7 {[%emt 0:02:44]} 17. Qa3 {[%emt 0:00:44]} Bxe5 {[%emt 0:00:07]} 18. dxe5 {[%emt 0:00:18]} Nc8 {[%emt 0:00:02]} 19. Rad1 {[%emt 0:01:00]} Qe7 {[%emt 0:00:27]} 20. Qb3 {[%emt 0:01:00]} Nb6 {[%emt 0:00:17]} 21. a4 {[%emt 0:00:17]} Qc5 {[%emt 0:00:42]} 22. Qc2 {[%emt 0:00:38] [#]} (22. Bf1 $11) 22... Rfc8 {[%emt 0:00:38]} ({Black should try} 22... d4 $1 $17 23. c4 Nxc4) 23. Re3 {[%emt 0:00:27]} (23. Qb3 $15) 23... d4 $17 {[%emt 0:00:49]} 24. Re4 {[%emt 0:00:59]} dxc3 {[%emt 0:00:08]} 25. b4 {[%emt 0:00:02] Wards off Qa5} (25. bxc3 $17 Qxc3 26. Qxc3 Rxc3 27. a5) 25... Qe7 $19 {[%emt 0:00:14]} 26. Rg4 {[%emt 0:00:32]} Nd5 {[%emt 0:00:25]} 27. Qb3 {[%emt 0:00:46] [#]} (27. Rb1) 27... c2 {[%emt 0:07:04] Weighted Error Value: White=0.60/Black=0.16 (very precise) .  Mistake:       	White=4     	Black=1      Inaccurate:     	White=4     	Black=3      OK:         	White=3     	Black=8      Best:        	---       	Black=2} 0-1